{"text_format":"1","workbook":"xlsx","n_sheets":1,"sheets":["Salim"],"not_rendered":{"charts":0,"images":0,"macros":1,"external_links":0,"defined_names":1,"comments":1,"pivot_tables":0},"unopened":[],"bounds":{"document_bytes":16777216,"sheet_cells":100000,"rows_first":2000,"rows_last":500,"rows_between":2000,"halvings":0,"cell_chars":16384,"cell_head_chars":4096},"cells_cut":0,"cells_raw":0,"read":"whole","date_system":"1900"}

{"sheet":"Salim","index":0,"n_rows":74,"n_cols":80,"rows_kept":74,"cut":false,"hidden":false,"merged":[[1,5,3,13]]}
[]
[null,null,null,null,null,"برنامج مطابقة اشعار الحساب الجاري العام "]
[]
[]
[]
[null,null,null,1,2,3,4,5,6,7,8,9,10,11,12,13,14,15,16,17,18,19,20,21,22,23,24,25,26,27,28,29,30,31,32,61,62,63,33,34,35,36,37,38,39,40,41,42,43,44,45,46,47,48,49,50,51,52,53,54,55,56,57,58,59,60,64,65,66,67,68]
[]
["ت",null,"اسم الموظف","استقطاع (4) 10 مليون العمارة 9","استقطاع (4)10 مليون بلدروز ","استقطاع (4) 100 راتب البحيرة 311 ","استقطاع (4)100 راتب مقدادية ","استقطاع (4)30 مليون صلاح الدين","استقطاع (1) صندوق تربية","استقطاع 2 5 مليون فاروق","استقطاع (4)  10 مليون فاروق","استقطاع (4) 5 مليون بلدروز","استقطاع (4) الرشيد اشنونا سيارات ","استقطاع (4) سيارات  بعقوبة","استقطاع (4) لصناعة المواد الانشائية","استقطاع (4) نقابة المعلمين","استقطاع (4)5 مليون 14 بعقوبة","استقطاع 5 رعاية","استقطاع 6 رسم طابع ","استقطاع (4) 100 راتب 14 بعقوبة","استقطاع (4) اربعة مصرف الثقة","استقطاع(3)  مئة راتب فاروق","التامين مصرف 14 بعقوبة ","التامين مصرف الفاروق","استقطاع (4)الرافدين المحيط بغداد","المصرف الزراعي الخالص ","المصرف الزراعي المقدادية","المصرف الزراعي بعقوبة ","المصرف الزراعي هبهب","امانات متنوعة صندوق اسكان","ايراد نهائي","بدل ايجار","تامين البحيرة","تامين المقدادية","تامين صلاح الدين","تنفيذ كاظمية ","تنفيذ الرصافة","تنفيذ الحلة ","تنفيذ ابي صيدا","تنفيذ البياع ","تنفيذ الخالص ","تنفيذ الزهور","تنفيذ العزيزية","تنفيذ بعقوبة","تنفيذ بلدروز","تنفيذ خان بني سعد","توقيفات تقاعدية","استقطاع (4) رافدين 311 سيارات","استقطاع (4)سلفة زواج فاروق","سلفة متنوعة","استقطاع (4)شركة ديالى","ضريبة دخل","عقاري","استقطاع (4) قرض اسكان بلدروز","استقطاع (4)مصرف الرافدين العلوية","استقطاع 5 فرع الهندية","تنفيذ الدورة","تنفيذ كربلاء","استقطاع (4) 30 مليون فاروق","استقطاع (4) 5 مليون مصرف رافدين ","استقطاع (4) مديرية زراعة ديالى","استقطاع (4) 10 مليون مقدادية","استقطاع (4) رشيد شنونا 10 مليون","استقطاع (4)جامعة ديالى قسم الشؤون المالية ","استقطاع (4) فرع الاعظمية 10 مليون","استقطاع (4) 30 مليون المقدادية","استقطاع (4)المصرف العراقي للتجارة/ النجف الاشرف","استقطاع(4) سلفة زواج صندوق التربية ","تنفيذ جلولاء","استقطاع(4) 5مليون حذيفة بن اليمان","استقطاع(4)10 مليون رافدين 14"]
[10,null,"احمد حميد",null,null,null,null,null,611000,102395,null,null,null,null,null,null,409580,782685,null,445371,null,null,20833,null,null,null,null,620400,640400,130860,123000,null,null,null,null,null,null,null,null,null,null,null,null,1477890,null,176250,31736220,null,null,219731,null,11638116,1221750,null,null,null,null,null,null,null,null,null,null,null,null,null,null,null,null,null,null,null,null,null,null,null,null,null,null,{"$f":"SUMif","v":{"$error":"#NAME?"}}]
[14,null,"اسيل خليل",null,null,null,null,null,592000,307185,1228752,null,null,null,73250,null,null,790459,null,null,null,null,null,null,null,null,null,1176750,null,305052,null,null,null,null,null,null,null,null,null,null,null,null,null,489450,null,null,31958400,null,null,null,null,13371973,1335250]
[23,null,"اشواق رزوقي",null,null,null,null,null,518000,204790,409584,null,null,null,null,null,102395,585623,null,null,null,null,null,null,null,620000,null,234822,null,384420,250000,null,null,null,null,null,null,null,null,null,924483,null,null,553631,233000,null,23477500,null,null,null,null,5901735,1105500,null,null,null,null,null,null,null,null,null,192084]
[9,null,"امجد حميد",null,null,null,null,131329,634000,null,614376,null,null,null,null,null,null,798545,null,null,650000,721500,null,33750,null,null,null,1338100,null,127150,476041,null,null,null,6200,null,null,null,null,null,null,null,129060,1545570,null,null,32105200,null,null,231570,null,11510388,372000,null,null,null,null,null,null,null,null,null,null,null,null,null,null,104167]
[20,null,"بيداء فارس",null,null,null,null,null,599000,null,614376,null,null,null,null,null,null,849509,null,null,null,846204,39583,null,null,null,null,null,null,null,414004,null,null,null,null,null,null,null,null,null,null,null,null,103000,null,null,34874300,null,null,null,null,16344874,1724000,null,null,null,null,null,null,null,null,null,null,248800]
[7,null,"حسام الدين طه محسن",null,null,null,null,null,347000,null,null,null,null,null,null,null,null,411253,null,374111,null,null,null,17500,null,null,null,null,null,null,273468,null,null,null,null,null,null,null,null,null,null,null,null,206000,null,null,16612300,null,null,677100,null,4684272]
[19,null,"حسام رشيد",null,null,null,null,null,682000,102395,819168,null,null,null,null,null,204790,853214,null,null,null,329575,null,15417,null,null,null,null,877900,null,304253,null,null,null,null,null,null,null,309000,null,null,null,null,1970210,null,80200,34968300,null,104000,338000,null,12140261,713750,null,null,null,null,null,null,null,100000,null,null,null,204792,269166]
[15,null,"حسين صكبان ",204792,null,331000,null,null,668000,null,819168,null,null,null,null,null,null,857465,null,null,null,890742,null,41666,null,null,109225,1312600,null,327150,150002,81400,null,null,null,null,null,null,null,null,null,null,null,1833110,null,null,34618226,null,null,null,null,12537141,1291250,null,420000]
[25,null,"سلام إبراهيم",null,null,null,322448,null,633000,null,null,null,409639,null,null,null,null,812592,1000,null,null,null,null,null,null,null,null,null,1031325,null,100002,null,null,15000,null,null,null,null,null,null,null,null,null,null,null,null,32874173,null,null,100000,null,11090080,53000]
[12,null,"سهاد نبهان جلوب",null,null,null,null,null,504000,307185,819168,null,null,null,null,null,null,648871,null,null,null,null,null,null,null,null,null,null,null,null,1,null,null,null,null,null,null,null,null,null,null,null,null,757778,null,null,26562750,null,null,80725,null,9944918,744500,null,null,null,null,null,null,null,null,192084,null,null,null,null,null,null,null,308945]
[3,null,"شاكر علي ",null,null,null,null,null,546000,null,614376,null,null,null,null,null,102395,678024,null,null,null,null,null,null,null,null,null,null,null,null,225002,null,null,null,null,null,null,null,null,null,null,null,null,null,null,null,27539800,null,null,48000,null,10172728,301750]
[2,null,"طلبة عبد  جسام",null,null,null,null,null,485000,204790,409584,null,null,654000,null,null,192166,549493,null,267223,null,null,12500,null,null,null,null,null,null,null,311000,null,null,null,null,null,null,null,null,90000,226600,null,null,674140,null,null,22426000,520000,null,null,null,6351202,560000,null,null,null,null,null,null,null,null,null,null,null,null,null,null,null,110000]
[6,null,"عذراء علي عبد",null,null,407069,null,null,593000,null,null,null,null,null,null,null,null,737937,null,391926,null,419688,18333,18750,null,null,null,388400,null,145400,609450,null,19042,null,null,null,null,null,268697,null,67000,null,null,149170,null,157824,30283300,null,null,null,null,10330535,587000,133611,420000]
[1,null,"فاتن عبد العزيز ",null,null,null,445371,null,489000,null,null,null,409639,null,null,null,null,643393,null,null,null,400833,null,18750,null,null,null,null,null,127150,150011,null,null,2085,null,null,null,null,null,null,null,null,null,null,null,null,26130500,null,null,null,null,9983794,1334750]
[21,null,"قسمه حميد",null,null,null,null,null,577000,102395,204792,null,null,null,null,null,102395,694222,null,null,null,445371,null,20833,null,null,null,null,null,408750,154600,19000,null,null,null,null,null,null,null,null,20600,null,null,273620,null,null,28115550,1007000,null,null,null,9372202,1092500,null,null,null,null,null,410258]
[24,null,"ليلى علي حميد",null,null,null,null,null,567000,null,204792,null,436655,null,null,127580,null,747844,null,null,null,445371,null,20833,null,null,null,null,119320,326056,458104,null,null,null,null,288780,407610,null,null,null,null,null,null,1255595,null,null,30194800,null,null,null,null,12269591,880000,null,null,null,null,null,null,null,null,null,null,null,null,null,null,null,null,null,204792]
[26,null,"محمد تعبان محمد",null,null,null,null,null,610000,102395,409584,null,null,null,null,null,204790,764651,null,445371,null,null,20833,null,null,null,null,null,null,145400,932127,null,null,null,null,null,null,195700,null,null,123600,362450,null,1744530,null,null,31689250,340000,null,null,null,10439010,963000,null,519000,null,null,null,null,null,null,null,null,null,null,null,322675]
[17,null,"محمد خالد",null,204792,null,null,null,655000,null,614376,null,568958,null,null,null,102395,764507,null,445371,null,445371,20833,20833,204792,null,252227,520000,null,null,196001,null,null,null,null,null,null,null,null,null,128750,null,null,1097250,null,null,31289589,null,null,534701,null,9186999,983000,null,null,null,null,null,null,null,null,269166]
[22,null,"محمد عبد فليح",null,null,null,null,null,{"$f":"337000+83333","v":420333},null,614376,null,null,null,null,null,102395,374759,null,null,null,null,null,null,null,null,null,null,469075,null,189791,null,null,null,null,null,null,null,null,null,null,null,null,null,null,null,15118600,null,null,null,null,3233540,527500]
[16,null,"مصطفى كريم ",null,null,null,null,null,650000,409580,819168,null,409639,351012,null,null,null,787431,null,null,365000,400833,null,18750,null,null,null,890000,null,null,483596,49500,null,null,null,null,null,null,null,null,null,null,null,1618890,154500,623440,32151423,null,null,340000,100000,9224458,1065500,null,519000]
[11,null,"نضال إبراهيم",null,null,null,null,null,506000,null,614376,null,409639,null,null,null,null,612374,null,null,null,445371,null,20833,null,null,null,null,null,null,1107667,null,null,null,null,null,null,null,null,null,null,null,null,725670,null,null,24923600,null,null,60000,null,8319417,368000]
[5,null,"نورة علاء حسين",null,null,null,null,null,567000,null,819168,null,null,null,null,null,294561,721552,null,641344,510000,null,null,17500,null,null,null,null,null,145400,599002,null,null,null,null,null,null,null,null,null,null,null,null,179630,null,null,29553633,null,104000,103620,null,11201373,745500]
[18,null,"نوفل محمد إسماعيل",null,null,null,null,null,660000,null,409584,null,null,null,null,null,null,905600,null,null,null,1576613,null,73749,null,null,null,null,null,145400,314463,null,null,null,null,null,null,null,null,null,null,null,null,1870981,null,null,36831100,null,null,null,null,15421396,776500]
[8,null,"هشام محي رشيد",null,null,null,null,null,375000,204790,1023960,null,null,null,null,null,null,489274,null,null,null,null,null,null,null,null,null,null,null,97480,null,null,null,null,null,null,null,null,null,null,null,null,null,197300,null,null,19729800,null,null,232910,null,7850757,186000]
[4,null,"وسام فاضل",null,null,null,null,null,586000,409580,2252712,102396,null,180960,null,null,null,691029,null,null,225000,890742,null,41666,null,450175,null,1051650,null,127150,1164401,null,null,null,null,null,null,null,null,null,177910,100000,null,359660,null,null,27911116,192420,null,110593,null,9504096,1422500]
[13,null,"وسام احمد جواد",null,null,null,null,null,461000,null,null,null,null,376000,null,null,null,616817,null,1104517,510000,null,52499,null,null,null,null,null,null,null,281000,null,null,null,null,null,null,null,null,null,null,null,null,1337130,null,null,24672850,null,null,null,null,10308330,1065000]
[27]
[28]
[29]
[30]
[31]
[32]
[33]
[34]
[35]
[36]
[37]
[38]
[39]
[40]
[]
[]
[]
[]
[]
[]
[]
[]
[]
[]
[]
[]
[]
[]
[]
[]
[null,null,null,{"$f":"SUM(D9:D64)","v":204792},{"$f":"SUM(E9:E64)","v":204792},738069,767819,{"$f":"SUM(H9:H64)","v":131329},14535333,2457480,{"$f":"SUM(K9:K64)","v":14335440},102396,2644169,1561972,73250,127580,1817862,18169123,1000,4115234,2260000,8258214,185414,{"$f":"SUM(X9:X64)","v":380830},204792,1070175,361452,7532722,3138020,2942818,9266986,149900,19042,17085,6200,{"$f":"SUM(AJ9:AJ64)","v":288780},{"$f":"SUM(AK9:AK64)","v":407610},{"$f":"SUM(AL9:AL64)","v":195700},577697,90000,1668943,462450,129060,20420205,387500,1037714,738348280,2059420,208000,3076950,100000,262333186,21419500,133611,1878000,0,0,0,410258,0,100000,461250,192084,248800,{"$f":"SUM(BM9:BM64)","v":204792},269166,322675,104167,{"$f":"SUM(BQ9:BQ64)","v":110000},{"$f":"SUM(BR9:BR64)","v":308945},204792,0]
[]
[]
[]
[]
[]
[]
[]
[]
[null,null,null,null,null,null,null,null,null,2457480]